bitfinex/quotes_SOLUSD_20240625
["timestamp","ask_amount","ask_price","bid_price","bid_amount"]
[1719349941506,23.27723241,137.72,137.67,0.0430408]
[1719349941507,13.37815805,137.68,137.67,0.0430408]
[1719349941711,33.37815805,137.68,137.67,0.0430408]
[1719349950706,6.11495805,137.68,137.67,0.0430408]
[1719349950929,6.11495805,137.71,137.67,0.0430408]
[1719349951104,7.2632,137.68,137.67,0.0430408]
[1719349951312,13.37815805,137.68,137.67,0.0430408]
[1719349952516,7.2632,137.68,137.67,0.0430408]
[1719349952916,7.2629,137.69,137.67,0.0430408]
[1719349953330,6.11495805,137.68,137.67,0.0430408]
[1719349960745,13.37815805,137.68,137.67,0.0430408]
[1719349962540,6.11495805,137.68,137.67,0.0430408]
[1719349966653,13.37765805,137.69,137.67,0.0430408]
[1719349971152,6.11495805,137.71,137.67,0.0430408]
[1719349971363,12.17955805,137.72,137.67,0.0430408]
[1719349971650,6.0646,137.72,137.67,0.0430408]
[1719349971861,6.0646,137.72,137.67,0.2130408]
[1719349972028,6.0646,137.72,137.68,0.17]
[1719349974430,6.0646,137.72,137.68,0.34]
[1719349979577,6.0646,137.72,137.68,20.34]
[1719349979868,6.0646,137.72,137.68,42.17]
[1719349980031,6.0646,137.72,137.68,142.17]
[1719349980866,15.6896,137.74,137.69,121.83]
[1719349981035,4.58450641,137.74,137.7,20.0]
[1719349981239,4.58450641,137.74,137.71,0.34]
[1719349981759,13.37075805,137.82,137.71,0.34]
[1719349982164,6.11495805,137.81,137.71,0.34]
[1719349983263,7.2558,137.82,137.71,0.34]
[1719349983462,6.11495805,137.81,137.71,0.34]
[1719349985352,7.2574,137.79,137.7,20.0]
[1719349985547,6.11495805,137.84,137.68,20.0]
[1719349985745,7.257,137.8,137.68,20.0]
[1719349985946,7.2565,137.81,137.68,20.0]
[1719349986148,6.11495805,137.8,137.68,20.0]
[1719349986680,6.11495805,137.8,137.69,0.17]
[1719349986982,6.11495805,137.8,137.7,15.9037]
[1719349987184,6.11495805,137.8,137.71,20.34]
[1719349987554,6.11495805,137.8,137.72,6.2931]
[1719349987753,6.11495805,137.8,137.73,0.34]
[1719349987969,7.2574,137.79,137.73,0.17]
[1719349988155,6.11495805,137.78,137.72,6.2931]
[1719349988358,7.2591,137.76,137.72,6.2931]
[1719349988571,7.2591,137.76,137.7,15.9037]
[1719349989151,7.2585,137.77,137.7,15.9037]
[1719349989506,6.11495805,137.76,137.7,15.9037]
[1719349990350,6.11495805,137.75,137.7,15.9037]
[1719349990551,6.11495805,137.77,137.7,15.9037]
[1719349990855,6.11495805,137.76,137.7,15.9037]
[1719349991871,6.11495805,137.75,137.7,15.9037]
[1719349992362,5.61495805,137.75,137.7,15.9037]
[1719349992780,7.2588,137.77,137.7,15.9037]
[1719349992956,5.61495805,137.76,137.7,15.9037]
[1719349998388,7.2602,137.74,137.7,15.9037]
[1719349998586,18.1431,137.8,137.7,15.9037]
[1719349998811,7.2591,137.76,137.7,15.9037]
[1719349999686,7.2586,137.77,137.7,15.9037]
[1719350000166,5.61495805,137.76,137.7,15.9037]
[1719350004502,5.61495805,137.76,137.71,0.17]
[1719350008288,5.61495805,137.77,137.71,0.17]
[1719350008611,5.61495805,137.76,137.71,0.34]
[1719350008811,5.61495805,137.78,137.71,0.34]
[1719350009497,12.87315805,137.78,137.71,0.34]
[1719350013117,7.259,137.76,137.71,0.34]
[1719350013285,5.61495805,137.75,137.71,0.17]
[1719350014210,5.61495805,137.76,137.71,0.17]
[1719350019423,5.61495805,137.77,137.71,0.17]
[1719350019638,5.61495805,137.76,137.71,0.17]
[1719350020538,5.61495805,137.77,137.71,0.17]
[1719350020731,5.61495805,137.76,137.71,0.17]
[1719350021822,5.61495805,137.77,137.71,0.17]
[1719350022001,5.61495805,137.76,137.71,0.17]
[1719350022202,5.61495805,137.76,137.7,15.9037]
[1719350022404,7.2596,137.75,137.7,15.9037]
[1719350022599,12.87505805,137.74,137.7,15.9037]
[1719350022805,5.61495805,137.73,137.7,15.9037]
[1719350023740,5.61495805,137.72,137.7,15.9037]
[1719350024043,7.26,137.74,137.7,15.9037]
[1719350024219,5.61495805,137.73,137.7,15.9037]
[1719350025328,5.61495805,137.73,137.67,15.5462408]
[1719350025640,20.17,137.72,137.67,0.0430408]
[1719350025829,7.2628,137.69,137.67,0.0430408]
[1719350026015,5.61495805,137.68,137.67,0.0430408]
[1719350037571,5.61495805,137.69,137.67,0.0430408]
[1719350038196,12.87765805,137.69,137.67,0.0430408]
[1719350038553,5.61495805,137.68,137.67,0.0430408]
[1719350043152,12.87815805,137.68,137.67,0.0430408]
[1719350043474,32.87815805,137.68,137.67,0.0430408]
[1719350044359,12.87815805,137.68,137.67,0.0430408]
[1719350051478,32.87815805,137.68,137.67,0.0430408]
[1719350052955,62.87815805,137.68,137.67,0.0430408]
[1719350054583,32.87815805,137.68,137.67,0.0430408]
[1719350057577,7.2654,137.64,137.59,0.8658465]
[1719350057754,25.61495805,137.63,137.59,0.8658465]
[1719350057954,5.61495805,137.63,137.59,0.8658465]
[1719350058379,12.88085805,137.63,137.59,0.8658465]
[1719350059583,5.61495805,137.63,137.59,0.8658465]
[1719350059788,5.61495805,137.62,137.59,0.8658465]
[1719350060709,7.2667,137.62,137.59,0.8658465]
[1719350061561,7.266,137.63,137.59,0.8658465]
[1719350062157,5.61495805,137.62,137.59,0.8658465]
[1719350062358,5.61495805,137.62,137.51,134.26548773]
[1719350062359,8.245,137.6,137.51,118.43878773]
[1719350062568,5.61495805,137.59,137.53,15.8267]
[1719350062957,20.1189479,137.61,137.54,0.43422765]
[1719350063171,5.61495805,137.6,137.54,0.43422765]
[1719350063380,7.2669,137.61,137.53,15.76092765]
[1719350063588,5.61495805,137.64,137.53,15.76092765]
[1719350063757,27.2659,137.63,137.54,0.17]
[1719350064078,6.0491857,137.63,137.54,0.17]
[1719350064284,6.0491857,137.63,137.54,20.17]
[1719350064463,7.2665,137.62,137.54,0.17]
[1719350064663,24.2103857,137.66,137.54,20.34]
[1719350064965,7.2654,137.64,137.55,1.02314644]
[1719350065170,6.0491857,137.63,137.56,0.34]
[1719350065993,13.3153857,137.63,137.56,0.34]
[1719350066171,7.2653,137.64,137.56,0.34]
[1719350066378,13.3150857,137.63,137.56,0.34]
[1719350066683,7.2659,137.63,137.56,0.34]
[1719350066895,7.2659,137.63,137.56,1.44613615]
[1719350067403,7.2665,137.62,137.56,0.34]
[1719350067684,7.2659,137.63,137.57,0.17]
[1719350069392,6.0491857,137.67,137.57,3.07114065]
[1719350069687,13.3129857,137.67,137.58,2.73094213]
[1719350069896,13.3129857,137.67,137.59,0.34]
[1719350070076,6.0491857,137.66,137.59,3.0708568]
[1719350070675,7.2644,137.66,137.59,3.0708568]
[1719350071190,7.2644,137.66,137.59,0.34]
[1719350071387,7.2644,137.66,137.6,0.17]
[1719350071591,7.2644,137.66,137.6,3.07025]
[1719350071894,13.3134857,137.66,137.6,3.07025]
[1719350072080,7.2643,137.66,137.6,3.07025]
[1719350072276,13.3129857,137.67,137.6,3.07025]
[1719350072479,13.3129857,137.67,137.6,0.34]
[1719350072897,13.3129857,137.67,137.61,0.17]
[1719350073071,13.3129857,137.67,137.59,3.07655787]
[1719350073270,6.0491857,137.66,137.59,3.07655787]
[1719350073968,6.0491857,137.66,137.59,0.34]
[1719350074167,6.0491857,137.66,137.6,0.17]
[1719350074498,7.2638,137.67,137.6,3.0876827]
[1719350074677,6.0491857,137.66,137.6,3.0876827]
[1719350074876,6.0491857,137.66,137.61,15.2866]
[1719350075074,6.0491857,137.66,137.62,2.74728359]
[1719350075296,13.3134857,137.66,137.62,2.74728359]
[1719350075490,7.2643,137.66,137.62,2.74728359]
[1719350076686,7.2637,137.68,137.62,2.74728359]
[1719350077000,6.0491857,137.67,137.62,2.74728359]
[1719350077383,13.3128857,137.67,137.62,2.74728359]
[1719350077782,7.2637,137.67,137.62,2.74728359]
[1719350078100,7.2642,137.66,137.62,2.74728359]
[1719350078603,7.2642,137.66,137.61,15.2866]
[1719350079195,7.2648,137.65,137.61,15.2866]
[1719350080400,7.2643,137.66,137.61,15.2866]
[1719350080602,7.2638,137.67,137.61,15.2866]
[1719350080800,6.0491857,137.66,137.61,15.2866]
[1719350083120,13.3134857,137.66,137.61,15.2866]
[1719350083286,6.0491857,137.65,137.61,15.2866]
[1719350083694,6.0491857,137.66,137.61,15.2866]
[1719350087300,6.0491857,137.71,137.62,6.2803]
[1719350087514,26.0491857,137.7,137.62,6.4503]
[1719350088494,7.2631,137.69,137.62,6.4503]
[1719350088805,6.0491857,137.68,137.62,6.4503]
[1719350089007,6.0491857,137.67,137.62,6.4503]
[1719350094308,7.2646,137.66,137.61,15.2866]
[1719350094501,6.0491857,137.66,137.61,15.2866]
[1719350094701,6.0491857,137.69,137.61,15.2866]
[1719350094902,7.2635,137.68,137.61,15.2866]
[1719350095231,6.0491857,137.67,137.61,15.2866]
[1719350095396,13.3130857,137.67,137.61,15.2866]
[1719350095894,6.0491857,137.67,137.61,15.2866]
[1719350096094,6.0491857,137.69,137.61,15.2866]
[1719350096515,7.2638,137.67,137.61,15.2866]
[1719350096726,6.0491857,137.66,137.61,15.2866]
[1719350097633,6.0491857,137.67,137.61,15.2866]
[1719350103928,6.0491857,137.69,137.61,15.2866]
[1719350104120,6.0491857,137.71,137.64,16.3942]
[1719350104424,6.0491857,137.71,137.57,141.83]
[1719350104425,7.2647,137.66,137.6,23.0507]
[1719350104624,6.0491857,137.65,137.6,23.0507]
[1719350104832,13.3140857,137.65,137.6,23.0507]
[1719350105011,6.0491857,137.65,137.6,23.0507]
[1719350105205,38.1556,137.7,137.6,23.0507]
[1719350105529,7.2651,137.65,137.6,23.0507]
[1719350105713,7.2644,137.66,137.6,23.0507]
[1719350106309,13.3121857,137.69,137.61,0.34]
[1719350106504,20.0,137.68,137.61,0.34]
[1719350106829,6.0491857,137.68,137.61,0.34]
[1719350107320,15.5664,137.72,137.61,0.34]
[1719350107321,6.0491857,137.69,137.61,0.34]
[1719350107499,6.0491857,137.7,137.62,15.5346]
[1719350107703,7.2612,137.72,137.63,0.34]
[1719350107916,6.0491857,137.71,137.63,0.34]
[1719350108118,13.3108857,137.71,137.63,0.34]
[1719350108718,6.0491857,137.71,137.64,6.1462]
[1719350108928,6.0491857,137.72,137.66,15.5346]
[1719350109118,6.0491857,137.75,137.67,0.71053368]
[1719350109320,6.0491857,137.75,137.68,6.1462]
[1719350109509,6.0491857,137.75,137.69,0.37047985]
[1719350109713,7.2585,137.77,137.7,0.17]
[1719350109946,33.3081857,137.76,137.7,0.17]
[1719350110428,26.0491857,137.76,137.7,0.17]
[1719350110737,6.0491857,137.76,137.71,15.8442]
[1719350110922,6.0491857,137.76,137.72,0.5407442]
[1719350111944,6.0491857,137.77,137.72,0.17]
[1719350112128,6.0491857,137.76,137.72,0.17]
[1719350112308,6.0491857,137.8,137.72,0.17]
[1719350112509,26.0491857,137.79,137.72,0.17]
[1719350112738,7.2586,137.77,137.72,0.17]
[1719350113541,26.0491857,137.79,137.72,0.17]
[1719350114122,7.259,137.76,137.72,0.17]
[1719350115336,7.259,137.76,137.71,15.8442]
[1719350116220,7.2596,137.75,137.71,15.8442]
[1719350116539,6.0491857,137.74,137.71,15.8442]
[1719350117327,7.2592,137.76,137.71,15.8442]
[1719350117543,6.0491857,137.75,137.71,15.8442]
[1719350121243,6.0491857,137.76,137.71,15.8442]
[1719350121944,13.3081857,137.76,137.71,15.8442]
[1719350122241,6.0491857,137.75,137.71,15.8442]
[1719350122740,6.0491857,137.78,137.72,0.17]
[1719350123043,20.0,137.77,137.72,0.34]
[1719350123246,6.0491857,137.76,137.72,0.34]
[1719350125542,27.2584,137.77,137.72,0.34]
[1719350125843,6.0491857,137.76,137.72,0.34]
[1719350126149,13.3081857,137.76,137.72,0.34]
[1719350127350,6.0491857,137.76,137.72,0.34]
[1719350132353,20.0,137.77,137.72,0.34]
[1719350132554,26.0491857,137.77,137.72,0.34]
[1719350138051,6.0491857,137.76,137.72,0.34]
[1719350138262,13.3084857,137.76,137.72,0.34]
[1719350138865,6.0491857,137.76,137.72,0.34]
[1719350139558,20.0,137.77,137.72,0.34]
[1719350140060,13.3072857,137.78,137.72,0.34]
[1719350140357,7.2581,137.78,137.72,0.34]
[1719350140854,6.0491857,137.77,137.72,0.34]
[1719350142063,6.0491857,137.76,137.72,0.17]
[1719350142247,6.0491857,137.75,137.72,0.17]
[1719350143287,7.2586,137.77,137.72,0.17]
[1719350143467,7.2586,137.77,137.72,0.34]
[1719350146166,7.2581,137.78,137.72,0.34]
[1719350147567,7.2579,137.78,137.72,0.34]
[1719350147963,7.2576,137.79,137.72,0.34]
[1719350148348,7.258,137.78,137.73,6.4351]
[1719350148660,40.2938,137.82,137.74,0.34]
[1719350148661,7.2575,137.79,137.74,0.34]
[1719350148962,6.0491857,137.79,137.74,0.34]
[1719350149669,13.3066857,137.79,137.74,0.34]
[1719350149967,7.2575,137.79,137.74,0.34]
[1719350151271,7.2569,137.8,137.74,0.34]
[1719350151568,6.0491857,137.79,137.74,0.34]
[1719350151973,7.2574,137.79,137.74,1.44828354]
[1719350152145,10.8065857,137.79,137.74,1.44828354]
[1719350152646,7.2574,137.79,137.74,1.44828354]
[1719350153353,7.2571,137.8,137.74,1.44828354]
[1719350153562,3.5491857,137.79,137.74,1.44828354]
[1719350155269,11.59149852,137.84,137.74,1.44828354]
[1719350155270,10.8055857,137.81,137.75,16.6558]
[1719350155456,20.0,137.8,137.76,1.44812279]
[1719350156147,20.0,137.81,137.76,1.44812279]
[1719350156352,27.2556,137.83,137.76,1.44812279]
[1719350156548,23.5491857,137.83,137.76,1.44812279]
[1719350157782,3.5491857,137.83,137.76,1.44812279]
[1719350158070,23.5491857,137.83,137.76,1.44812279]
[1719350158297,7.2558,137.82,137.76,0.34]
[1719350158572,30.8045857,137.83,137.76,0.34]
[1719350160066,23.5491857,137.83,137.76,0.34]
[1719350163669,23.5491857,137.83,137.77,6.0607]
[1719350163873,23.5491857,137.83,137.78,0.34]
[1719350165799,3.5491857,137.83,137.78,0.34]
[1719350165976,3.5491857,137.83,137.78,1.79075246]
[1719350166578,10.8045857,137.83,137.78,0.34]
[1719350167870,3.5491857,137.83,137.78,0.34]
[1719350171682,23.5491857,137.86,137.78,0.34]
[1719350171977,3.5491857,137.85,137.78,0.34]
[1719350172178,16.50784721,137.85,137.78,0.34]
[1719350172376,20.17,137.84,137.75,16.6558]
[1719350172685,7.2559,137.82,137.75,16.6558]
[1719350172860,23.5491857,137.81,137.75,16.6558]
[1719350173481,3.5491857,137.82,137.76,6.4535]
[1719350173675,3.5491857,137.86,137.76,6.4535]
[1719350173877,3.5491857,137.85,137.77,0.17]
[1719350174060,3.5491857,137.85,137.77,0.34]
[1719350174472,10.8038857,137.85,137.77,0.34]
[1719350174668,20.0,137.84,137.77,0.34]
[1719350174981,3.5491857,137.83,137.77,0.34]
[1719350177285,3.5491857,137.82,137.77,0.17]
[1719350177486,3.5491857,137.82,137.76,6.4535]
[1719350177684,7.2561,137.82,137.76,6.4535]
[1719350177864,3.5491857,137.81,137.76,6.4535]
[1719350178894,3.5491857,137.81,137.77,0.17]
[1719350179183,7.2554,137.83,137.77,0.17]
[1719350179389,3.5491857,137.82,137.77,0.34]
[1719350179570,3.5491857,137.82,137.76,6.6335]
[1719350180405,3.5491857,137.83,137.76,6.6335]
[1719350181480,10.8044857,137.83,137.76,6.6335]
[1719350181664,7.2553,137.83,137.77,0.34]
[1719350185487,7.2549,137.84,137.77,0.34]
[1719350187665,7.2544,137.85,137.77,0.34]
[1719350187988,23.5491857,137.84,137.77,0.34]
[1719350190893,23.5491857,137.84,137.78,15.6526]
[1719350191095,23.5491857,137.84,137.79,0.34]
[1719350191769,3.5491857,137.84,137.79,0.34]
[1719350192077,3.5491857,137.84,137.79,1.33257255]
[1719350193291,10.8038857,137.84,137.79,1.33257255]
[1719350196599,10.8023857,137.87,137.79,1.33257255]
[1719350197116,9.25324721,137.88,137.81,16.5747]
[1719350197273,9.25324721,137.88,137.82,1.33261197]
[1719350197472,3.5491857,137.88,137.82,1.33261197]
[1719350197692,3.5491857,137.89,137.82,1.33261197]
[1719350197878,10.8013857,137.89,137.82,1.33261197]
[1719350198080,7.2528,137.88,137.82,1.33261197]
[1719350198284,10.8023857,137.87,137.82,1.33261197]
[1719350198486,7.2532,137.87,137.82,1.33261197]
[1719350198790,7.2528,137.88,137.82,1.33261197]
[1719350199180,7.2534,137.87,137.82,1.33261197]
[1719350199389,7.254,137.86,137.81,16.5747]
[1719350199579,3.5491857,137.86,137.81,16.5747]
[1719350199779,7.2543,137.85,137.81,16.5747]
[1719350203363,7.2553,137.83,137.77,15.5534]
[1719350203480,3.5491857,137.82,137.78,0.17]
[1719350204694,3.5491857,137.83,137.78,1.16349485]
[1719350205011,3.5491857,137.82,137.78,1.16349485]
[1719350205192,20.0,137.86,137.78,1.16349485]
[1719350205193,7.2552,137.84,137.78,1.16349485]
[1719350205394,3.5491857,137.83,137.78,1.16349485]
[1719350205795,20.0,137.86,137.78,0.17]
[1719350205796,3.5491857,137.85,137.78,0.17]
[1719350206001,3.5491857,137.85,137.79,0.17]
[1719350206483,3.5491857,137.85,137.78,0.34]
[1719350207593,7.2551,137.84,137.78,0.34]
[1719350207794,3.5491857,137.83,137.78,0.34]
[1719350210999,3.5491857,137.84,137.78,0.34]
[1719350211405,10.8039857,137.84,137.78,0.34]
[1719350212026,3.5491857,137.83,137.78,0.34]
[1719350212234,3.5491857,137.84,137.78,0.34]
[1719350212826,3.5491857,137.88,137.78,0.34]
[1719350213336,7.2538,137.86,137.78,0.34]
[1719350213506,23.5491857,137.85,137.78,0.34]
[1719350218031,3.5491857,137.85,137.78,0.34]
[1719350218231,3.5491857,137.85,137.78,1.79023789]
[1719350222543,3.5491857,137.85,137.78,21.79023789]
[1719350223339,23.5491857,137.85,137.77,17.00363789]
[1719350223542,7.256,137.82,137.77,17.00363789]
[1719350223835,3.5491857,137.81,137.77,17.00363789]
[1719350224039,3.5491857,137.81,137.77,15.5534]
[1719350224818,7.2574,137.8,137.77,15.5534]
[1719350225014,3.5491857,137.79,137.77,15.5534]
[1719350226242,3.5491857,137.8,137.77,15.5534]
[1719350226421,3.5491857,137.79,137.77,15.5534]
[1719350227329,3.5491857,137.8,137.77,15.5534]
[1719350228637,23.5491857,137.81,137.77,15.5534]
[1719350230146,30.8055857,137.81,137.77,15.5534]
[1719350230322,23.5491857,137.81,137.77,15.5534]
[1719350230634,7.2574,137.79,137.77,15.5534]
[1719350231138,7.257,137.8,137.77,15.5534]
[1719350231350,3.5491857,137.79,137.77,15.5534]
[1719350233140,20.0,137.83,137.77,15.5534]
[1719350234131,3.5491857,137.82,137.77,15.5534]
[1719350234427,7.2569,137.8,137.77,15.5534]
[1719350235134,3.5491857,137.82,137.77,15.5534]
[1719350235523,10.8052857,137.82,137.77,15.5534]
[1719350235831,20.0,137.81,137.77,15.5534]
[1719350236040,3.5491857,137.8,137.77,15.5534]
[1719350236836,23.5491857,137.81,137.77,15.5534]
[1719350237028,3.5491857,137.81,137.77,15.5534]
[1719350237847,7.2558,137.82,137.77,15.5534]
[1719350238046,3.5491857,137.81,137.77,15.5534]
[1719350239839,10.8057857,137.81,137.77,15.5534]
[1719350240043,7.2579,137.78,137.77,15.5534]
[1719350240725,7.2575,137.79,137.77,15.5534]
[1719350240948,3.5491857,137.78,137.77,15.5534]
[1719350241246,10.8070857,137.78,137.77,15.5534]
[1719350241936,10.8070857,137.78,137.73,22.8092]
[1719350242146,10.8070857,137.78,137.74,0.17]
[1719350243541,3.5491857,137.78,137.74,0.17]
[1719350246248,23.5491857,137.79,137.74,0.17]
[1719350246635,30.8065857,137.79,137.74,0.17]
[1719350246835,3.5491857,137.78,137.74,0.17]
[1719350247869,3.5491857,137.81,137.74,0.17]
[1719350248350,7.2572,137.8,137.74,0.17]
[1719350248546,3.5491857,137.79,137.74,0.17]
[1719350249561,22.4061,137.78,137.64,15.8782]
[1719350249761,3.5491857,137.77,137.64,15.8782]
[1719350250066,7.2602,137.74,137.64,15.8782]
[1719350250246,3.5491857,137.73,137.64,15.8782]
[1719350250638,23.5491857,137.73,137.64,15.8782]
[1719350250864,30.8098857,137.73,137.64,15.8782]
[1719350251067,3.5491857,137.72,137.64,15.8782]
[1719350251248,7.2625,137.7,137.64,15.8782]
[1719350251452,10.8107857,137.72,137.64,15.8782]
[1719350251649,20.0,137.71,137.64,15.8782]
[1719350251843,3.5491857,137.7,137.64,15.8782]
[1719350252964,3.5491857,137.7,137.65,0.34]
[1719350260860,10.8114857,137.7,137.65,0.34]
[1719350261881,3.5491857,137.7,137.65,0.34]
[1719350262181,3.5491857,137.7,137.65,0.17]
[1719350262367,3.5491857,137.7,137.65,0.34]
[1719350264069,23.5491857,137.71,137.65,0.34]
[1719350264270,3.5491857,137.71,137.65,0.34]
[1719350269382,10.8108857,137.71,137.65,0.34]
[1719350269580,3.5491857,137.71,137.65,0.34]
[1719350270096,3.5491857,137.71,137.64,15.8782]
[1719350270097,7.2639,137.67,137.64,15.8782]
[1719350270265,7.2633,137.68,137.64,15.8782]
[1719350270964,7.2633,137.68,137.61,15.8257]
[1719350271764,7.2628,137.69,137.61,15.8257]
[1719350271961,23.5491857,137.68,137.61,15.8257]
[1719350272476,23.5491857,137.68,137.62,0.17]
[1719350272675,23.5491857,137.68,137.62,0.34]
[1719350278067,30.8123857,137.68,137.62,0.34]
[1719350281282,23.5491857,137.68,137.62,0.34]
[1719350281486,7.2651,137.65,137.58,16.3206]
[1719350281896,7.2653,137.64,137.58,16.3206]
[1719350282193,7.2661,137.63,137.58,16.3206]
[1719350282383,7.266,137.63,137.58,16.3206]
[1719350282586,20.0,137.62,137.58,16.3206]
[1719350283087,3.5491857,137.61,137.58,16.3206]
[1719350283692,3.5491857,137.61,137.59,0.17]
[1719350284927,3.5491857,137.61,137.54,15.4212]
[1719350285084,3.5491857,137.61,137.55,0.17]
[1719350285584,20.0,137.62,137.55,0.17]
[1719350285780,23.5491857,137.64,137.55,0.17]
[1719350286508,23.5491857,137.64,137.55,0.34]
[1719350287385,7.2666,137.62,137.54,15.4212]
[1719350287583,3.5491857,137.61,137.54,15.4212]
[1719350288616,7.267,137.61,137.54,15.4212]
[1719350288814,7.2664,137.62,137.55,0.17]
[1719350288988,7.266,137.63,137.55,0.17]
[1719350289193,20.0,137.62,137.55,0.17]
[1719350289377,3.5491857,137.63,137.55,0.17]
[1719350289583,3.5491857,137.63,137.55,20.17]
[1719350289791,23.5491857,137.63,137.56,0.17]
[1719350289990,3.5491857,137.63,137.56,0.17]
[1719350290293,20.0,137.63,137.56,0.17]
[1719350290504,23.5491857,137.63,137.56,0.17]
[1719350290819,3.5491857,137.63,137.56,0.17]
[1719350299793,27.2653,137.64,137.56,0.17]
[1719350299995,3.5491857,137.67,137.57,21.3884]
[1719350300229,3.5491857,137.67,137.58,0.34]
[1719350300526,7.2644,137.66,137.58,0.34]
[1719350300735,39.6445,137.72,137.59,16.4327]
[1719350300941,3.5491857,137.71,137.6,0.34]
[1719350301906,7.2633,137.68,137.6,0.34]
[1719350302106,7.2627,137.69,137.6,0.34]
[1719350302413,7.2623,137.7,137.62,15.1521]
[1719350302720,7.2623,137.7,137.63,0.34]
[1719350302924,20.0,137.69,137.63,0.34]
[1719350303900,3.5491857,137.71,137.63,20.34]
[1719350304224,23.5491857,137.71,137.63,20.34]
[1719350304531,3.5491857,137.71,137.63,20.34]
[1719350304701,13.67089485,137.73,137.64,21.4718]
[1719350304702,9.95958055,137.73,137.64,21.4718]
[1719350304908,3.5491857,137.73,137.65,20.34]
[1719350305207,7.2595,137.75,137.65,20.34]
[1719350305418,3.5491857,137.74,137.65,20.34]
[1719350305807,7.2607,137.73,137.65,20.34]
[1719350306033,10.8092857,137.74,137.65,20.34]
[1719350306203,3.5491857,137.76,137.65,20.34]
[1719350306545,7.2601,137.74,137.65,20.34]
[1719350307027,7.2595,137.75,137.65,20.34]
[1719350307197,23.5491857,137.74,137.65,20.34]
[1719350307810,20.0,137.74,137.66,16.2235]
[1719350308131,3.5491857,137.75,137.67,0.34]
[1719350308314,3.5491857,137.75,137.68,21.7699]
[1719350308508,23.5491857,137.76,137.69,0.34]
[1719350308705,10.8085857,137.76,137.69,0.34]
[1719350308898,20.0,137.75,137.69,0.34]
[1719350309507,30.8081857,137.76,137.69,0.34]
[1719350310636,23.5491857,137.76,137.69,0.34]
[1719350310816,7.258,137.78,137.69,20.34]
[1719350310999,7.2576,137.79,137.7,16.1681]
[1719350311203,7.258,137.78,137.71,0.34]
[1719350311600,3.5491857,137.77,137.71,0.34]
[1719350312435,23.5491857,137.77,137.71,0.34]
[1719350316133,30.8076857,137.77,137.71,0.34]
[1719350316709,23.5491857,137.77,137.71,0.34]
[1719350320938,23.5491857,137.77,137.7,16.1681]
[1719350321626,30.8075857,137.77,137.7,16.1681]
[1719350322144,30.8075857,137.77,137.71,0.34]
[1719350322744,23.5491857,137.77,137.71,0.34]
[1719350328341,3.5491857,137.77,137.71,0.34]
[1719350328547,3.5491857,137.76,137.71,0.34]
[1719350329826,20.0,137.78,137.71,0.34]
[1719350330631,27.258,137.78,137.71,0.34]
[1719350330823,3.5491857,137.77,137.71,0.34]
[1719350336849,3.5491857,137.76,137.71,0.34]
[1719350337045,30.8081857,137.76,137.71,0.17]
[1719350337351,10.8081857,137.76,137.7,16.1681]
[1719350337763,3.5491857,137.76,137.7,16.1681]
[1719350337944,23.5491857,137.76,137.7,16.1681]
[1719350338144,23.5491857,137.76,137.71,0.17]
[1719350341659,3.5491857,137.76,137.71,0.34]
[1719350341954,10.8068857,137.79,137.71,0.34]
[1719350342340,20.0,137.78,137.71,0.34]
[1719350342541,3.5491857,137.77,137.71,0.34]
[1719350351445,10.8076857,137.77,137.71,0.34]
[1719350351663,23.5491857,137.76,137.71,0.34]
[1719350355263,3.5491857,137.76,137.71,0.34]
[1719350355566,7.2579,137.78,137.71,0.34]
[1719350355767,23.5491857,137.77,137.71,0.34]
[1719350356768,30.8076857,137.77,137.71,0.34]
[1719350358566,23.5491857,137.77,137.71,0.34]